Cogmind - Beta 16 --- EXPLORER MODE // 2026.01.01 @ 10:54:56 Player: K.K.Y. Result: Destroyed by UM-G41(R) with Subdweller Laser Performance ------------- Evolutions (0) 0 Regions Visited (3) 600 Robots Destroyed (35) 175 Value Destroyed (726) 726 Prototype IDs (0) 0 Alien Tech Used (0) 0 Bonus (-77) -77 TOTAL SCORE: 1424 Bonus ------- Friendly Fire -77 Cogmind --------- Core Integrity 0/250 Matter 291/300 Energy 68/100 System Corruption 2% Temperature Cool (6) Movement Core (450) Ox8 Location -10/Subcaves Parts ------- > --- POWER (1) -------- (None) > --- PROPULSION (2) --- (None) > --- UTILITY (3) ------ Large Storage Unit Structural Scanner (fused) Utility Shielding > --- WEAPON (2) ------- Medium Laser Mining Laser > --- INVENTORY (15) --- Improved Heat Sink High-capacity Storage Unit Weight Redist. System Improved Terrain Scanner Core Shielding Core Shielding Utility Shielding Insulated Plating Makeshift System Shield Makeshift System Shield Field Laser EM Pulse Cannon Minigun Barrage Gun Dirty Datajack (20) Peak State ------------ > --- POWER ------------ Ion Engine > --- PROPULSION ------- Light Treads Light Treads > --- UTILITY ---------- Large Storage Unit Core Shielding Utility Shielding > --- WEAPON ----------- Medium Laser Particle Gun > --- INVENTORY -------- Improved Heat Sink High-capacity Storage Unit Weight Redist. System Structural Scanner Improved Terrain Scanner Core Shielding Utility Shielding Insulated Plating Field Laser EM Pulse Cannon Minigun Dirty Datajack Mining Laser [Rating: 12] Favorites ----------- Power Ion Engine Engine Ion Engine Propulsion Light Treads Treads Light Treads Utility Utility Shielding Device Structural Scanner Storage Large Storage Unit Protection Utility Shielding Weapon Medium Laser Energy Gun Medium Laser Ballistic Gun Light Assault Rifle Special Weapon Mining Laser Build | -11 -10 -10 -10 ------- Run | Yrd Mat Min Sub Slots Evolved 1 | . 1 . . Power . | . . . . Propulsion . | . . . . Utility 1 | . 1 . . Weapon . | . . . . Parts Attached 18 | 7 8 . 3 Power 3 | 1 2 . . Engine 3 | 1 2 . . Core . | . . . . Reactor . | . . . . Propulsion 4 | 2 2 . . Treads 4 | 2 2 . . Leg . | . . . . Wheel . | . . . . Hover . | . . . . Flight . | . . . . Utility 5 | 2 2 . 1 Device 2 | . 1 . 1 Storage 1 | . 1 . . Processor . | . . . . Hackware . | . . . . Protection 2 | 2 . . . Artifact . | . . . . Weapon 6 | 2 2 . 2 Energy Gun 4 | 1 2 . 1 Energy Cannon . | . . . . Ballistic Gun 1 | 1 . . . Ballistic Cannon . | . . . . Launcher . | . . . . Special Weapon 1 | . . . 1 Impact Weapon . | . . . . Slashing Weapon . | . . . . Piercing Weapon . | . . . . Special Melee Weapon . | . . . . Unidentified Prototypes . | . . . . Parts Lost 5 | . . . 5 Power 1 | . . . 1 Propulsion 2 | . . . 2 Utility . | . . . . Weapon 2 | . . . 2 Highest Loss Streak 3 | . . . 3 To Critical Strikes . | . . . . Average Backups 12 | 1 5 11 13 Power . | . . . . Propulsion . | . . . . Utility 8 | 1 3 7 9 Weapon 3 | . 1 3 3 Tool/Special . | . . . . Unused Backups 14 | . 1 . 13 Power . | . . . . Propulsion . | . . . . Utility 9 | . 1 . 8 Weapon 4 | . . . 4 Tool/Special 1 | . . . 1 Average Slot Usage (%) 75 | . 94 100 67 Engine 5 | . 12 12 3 Treads 8 | . 25 25 2 Device 8 | . . . 11 Storage 11 | . 7 12 12 Protection 15 | . 25 25 12 Energy Gun 15 | . 21 25 12 Special Weapon 8 | . . . 10 Peak Build Rating 12 | 7 11 11 12 Average Rating 9 | 5 8 10 9 On Entrance 7 | . 7 10 11 Avg Prop Armor Cover (%) . | . . . . Naked Turns . | . . . . Heaviest Build 32 | 7 32 32 32 Greatest Support 40 | 40 40 40 40 Greatest Overweight (x) 9 | 1 . . 9 Average Overweight (x) 3 | . . . 6 Largest Inventory Capacity 15 | 5 15 15 15 Average Capacity 14 | 5 11 15 15 Most Carried 15 | 5 7 12 15 Average Carried 12 | 1 5 11 13 Final Capacity 15 | 5 15 15 15 Final Carried 15 | 3 7 12 15 Class Distribution -------------------- 100% | Hacker-Mutant Dominant Class ---------------- Hacker-Mutant | -10/Materials Hacker-Mutant | -10/Mines Hacker-Mutant | -10/Subcaves Resources | -11 -10 -10 -10 ----------- Run | Yrd Mat Min Sub Matter Collected 559 | 224 155 38 142 Remotely . | . . . . Salvage Created 1177 | 126 517 113 421 Parts 73 | 10 27 10 26 Haulers Intercepted 2 | . 2 . . Recyclers Shooed . | . . . . Parts Field Recycled . | . . . . Retrieved Matter . | . . . . Parts Self-Destructed . | . . . . Prevented . | . . . . Parts Restored . | . . . . Kills | -11 -10 -10 -10 ------- Run | Yrd Mat Min Sub Combat Hostiles Destroyed 19 | . 8 2 9 Guns 18 | . 8 2 8 Cannons 1 | . . . 1 Classes Destroyed 11 | 3 5 . 3 Worker 3 | 1 1 1 . Builder 1 | . 1 . . Tunneler 3 | 2 . 1 . Hauler 2 | . 2 . . Recycler 3 | 1 1 1 . Watcher 2 | . 2 . . Swarmer 4 | . 2 2 . Grunt 6 | . 6 . . Artisan 2 | . . . 2 Subdweller 9 | . . . 9 Zionite 2 | . . . 2 Best Kill Streak 4 | 4 4 3 2 Combat Bots Only 2 | . 2 2 2 Max Kills in Single Turn 1 | 1 1 1 1 Gunslinging . | . . . . Exploded . | . . . . Melee . | . . . . Uniques/NPCs Destroyed . | . . . . Combat | -11 -10 -10 -10 -------- Run | Yrd Mat Min Sub Hostile Shots Fired 103 | . 41 4 58 Missed 33 | . 9 2 22 Hits 70 | . 32 2 36 Projectile 70 | . 32 2 36 Critical Strikes 3 | . 2 . 1 Damage Taken 879 | . 221 7 651 Core 257 | . 64 4 189 Absorbed by Shields . | . . . . Redirected to Shielding 24 | . 14 . 10 Ignored by Resistances 472 | . 146 6 320 Core Remaining (%) 100 | 100 . . . Volleys Fired 122 | 8 41 6 67 Largest 2 | 2 2 2 2 Hottest 150 | 60 115 115 150 Shots Fired 210 | 16 70 12 112 Gun 185 | 16 70 12 87 Cannon . | . . . . Launcher . | . . . . Special 25 | . . . 25 Kinetic 19 | 8 11 . . Thermal 191 | 8 59 12 112 Explosive . | . . . . Electromagnetic . | . . . . Robot Hit Streak 26 | 9 26 5 22 Robot Miss Streak 3 | 1 2 3 1 Penetration Max . | . . . . Secondary Targets . | . . . . Shots Hit Robots 135 | 12 52 6 65 Core Hits 59 | 7 22 6 24 Critical Kills . | . . . . Critical Parts Destroyed . | . . . . Critical Strikes 9 | . 4 . 5 Burn 9 | . 4 . 5 Melee Attacks . | . . . . Impact . | . . . . Slashing . | . . . . Piercing . | . . . . Sneak Attacks . | . . . . Combat Hostiles . | . . . . Follow-up Attacks . | . . . . Damage Inflicted 1687 | 117 686 82 802 Guns 1615 | 117 686 82 730 Cannons . | . . . . Explosions . | . . . . Melee . | . . . . Ramming . | . . . . Kinetic 94 | 41 53 . . Thermal 1593 | 76 633 82 802 Explosive . | . . . . Electromagnetic . | . . . . Impact . | . . . . Slashing . | . . . . Piercing . | . . . . Highest Corruption 2 | . 2 2 2 Average Corruption 1 | . 1 2 2 Corruption Purged . | . . . . Corruption Blocked . | . . . . Effects 75 | . 1 12 62 Message Errors 18 | . 1 2 15 Matter Fused 25 | . . 6 19 Heat Flow Errors 11 | . . 1 10 Energy Discharges 8 | . . 1 7 Parts Fused 1 | . . . 1 Data Loss (minor) 9 | . . 2 7 Data Loss (major) 2 | . . . 2 Alerts 1 | . . . 1 Overload Shots . | . . . . Overflow Damage . | . . . . Projectiles . | . . . . Explosions . | . . . . Melee . | . . . . Knockbacks . | . . . . Impact . | . . . . Kinetic . | . . . . Secondary . | . . . . Self-Inflicted Damage . | . . . . Shots . | . . . . Rammed . | . . . . Targets Rammed . | . . . . Kicked . | . . . . Crushed . | . . . . Highest Temperature 355 | 20 355 162 254 Average Temperature 85 | 14 100 59 79 Received Heat Transfer 348 | . 180 . 168 Siege Activations . | . . . . Martial Activations . | . . . . Shielding Activations . | . . . . Robots Disrupted . | . . . . Combat Hostiles . | . . . . Robots Corrupted . | . . . . Combat Hostiles . | . . . . Parts Fried . | . . . . Impact Corruptions . | . . . . Robots Melted . | . . . . Combat Hostiles . | . . . . Parts Melted 8 | . 3 . 5 Heat Transferred 4964 | 175 1975 222 2592 Parts Sabotaged . | . . . . Parts Stolen . | . . . . Parts Stripped . | . . . . Power Chain Reactions . | . . . . Alert | -11 -10 -10 -10 ------- Run | Yrd Mat Min Sub Maximum Alert Level . | . . . . Low Security (%) 100 | 100 100 100 . Level 1 . | . . . . Level 2 . | . . . . Level 3 . | . . . . Level 4 . | . . . . Level 5 . | . . . . High Security . | . . . . Max Security . | . . . . Peak Influence 67 | 5 67 50 . Initial 2 | . 2 . . Average 5 | 2 10 1 . Influence Increases 343 | 20 258 65 . Destroy 0b10 Robot/C 200 | . 160 40 . Destroy 0b10 Robot/NC 70 | 20 35 15 . Destroy Leader 58 | . 48 10 . Lose Combat Pursuer 15 | . 15 . . Influence Decreases 343 | 15 263 65 . Entered New Map 3 | . 3 . . Time Decay 340 | 15 260 65 . Squads Dispatched 1 | . . 1 . Investigation 1 | . . 1 . Extermination . | . . . . Reinforcement . | . . . . Assault . | . . . . Garrison . | . . . . Intercept . | . . . . Searches Triggered . | . . . . Construction Impeded . | . . . . Haulers Reinforced . | . . . . Active Scanning Responses . | . . . . Cargo Convoy Interrupts . | . . . . Stealth | -11 -10 -10 -10 --------- Run | Yrd Mat Min Sub Distress Signals 1 | . 1 . . Communications Jammed . | . . . . Distress Signals . | . . . . Times Spotted 29 | . 15 2 12 Peak Tracking Total 3 | . 3 2 2 Tactical Retreats 1 | . 1 . . Traps | -11 -10 -10 -10 ------- Run | Yrd Mat Min Sub Traps Triggered 7 | . 3 . 4 Indirectly . | . . . . Trap Hack Attempts . | . . . . Triggered . | . . . . Disarmed . | . . . . Reprogrammed . | . . . . Reused . | . . . . Traps Extracted . | . . . . Installed . | . . . . Triggered . | . . . . Machines | -11 -10 -10 -10 ---------- Run | Yrd Mat Min Sub Machines Disabled . | . . . . Max in Single Turn . | . . . . Machines Repaired . | . . . . Machines Dismantled . | . . . . Machines Sabotaged . | . . . . Overloaded Fab Kills . | . . . . Hacking | -11 -10 -10 -10 --------- Run | Yrd Mat Min Sub Machines Accessed 1 | . . 1 . Terminals . | . . . . Fabricators . | . . . . Repair Stations . | . . . . Recycling Units . | . . . . Scanalyzers . | . . . . Garrison Access . | . . . . Total Hacks 1 | . . 1 . Successful 1 | . . 1 . Failed . | . . . . Catastrophic . | . . . . Database Lockouts . | . . . . Manual . | . . . . Terminals . | . . . . Fabricators . | . . . . Repair Stations . | . . . . Recycling Units . | . . . . Scanalyzers . | . . . . Garrison Access . | . . . . Terminal Hacks 1 | . . 1 . Open Door 1 | . . 1 . Fabricator Hacks . | . . . . Repair Station Hacks . | . . . . Recycling Unit Hacks . | . . . . Scanalyzer . | . . . . Garrison Access Hacks . | . . . . Unauthorized Hacks . | . . . . Terminals . | . . . . Fabricators . | . . . . Repair Stations . | . . . . Recycling Units . | . . . . Scanalyzers . | . . . . Garrison Access . | . . . . Data Cores Recovered . | . . . . Used . | . . . . Hacking Detections . | . . . . Full Trace Events . | . . . . Feedback Events . | . . . . Feedback Blocked . | . . . . Robot Schematics Acquired . | . . . . Robots Built . | . . . . Authchips . | . . . . Time . | . . . . Total Robot Build Rating . | . . . . Part Schematics Acquired . | . . . . Parts Built . | . . . . Authchips . | . . . . Time . | . . . . Total Part Build Rating . | . . . . Part Studies Acquired . | . . . . Parts Repaired . | . . . . Time . | . . . . Parts Recycled . | . . . . Recycled Matter . | . . . . Retrieved Matter . | . . . . Retrieved Components . | . . . . Parts Scanalyzed . | . . . . Part Schematics Acquired . | . . . . Parts Damaged . | . . . . Bothacking | -11 -10 -10 -10 ------------ Run | Yrd Mat Min Sub Used RIF Installer . | . . . . Robots Hacked . | . . . . Non-combat . | . . . . Combat . | . . . . Robot Hacks Applied . | . . . . Relay Couplers Released . | . . . . Fabnet Peak Effective % . | . . . . Robots Rewired . | . . . . Allies Hacked . | . . . . Hacks Repelled . | . . . . Allies | -11 -10 -10 -10 -------- Run | Yrd Mat Min Sub Total Allies . | . . . . Largest Group . | . . . . Highest-Rated Group . | . . . . Highest-Rated Ally . | . . . . Total Orders . | . . . . Ally Attacks . | . . . . Total Damage . | . . . . Kills . | . . . . Allies Corrupted . | . . . . Allies Melted . | . . . . Intel | -11 -10 -10 -10 ------- Run | Yrd Mat Min Sub Active Infowar (turns) 5519 | . 1 . 5518 Terrain 1 | . 1 . . Structural 5518 | . . . 5518 Robot Analysis Total . | . . . . Derelict Logs Recovered 1 | . . 1 . Drone Launches . | . . . . Drone Recoveries . | . . . . Exploration | -11 -10 -10 -10 ------------- Run | Yrd Mat Min Sub Turns Passed 7719 | 104 946 1066 5603 Spaces Moved 2438 | 64 503 620 1251 Core 969 | 32 . . 937 Treads 1469 | 32 503 620 314 Legs . | . . . . Wheels . | . . . . Hover . | . . . . Flight . | . . . . Fastest Speed 50 | 50 160 160 160 Average Speed 277 | 105 160 160 392 Slowest Speed 500 | 160 160 160 500 Overloaded Moves . | . . . . Propulsion Burnouts . | . . . . Robots Hopped . | . . . . Potential Cave-ins . | . . . . Cave-ins Triggered . | . . . . Exploration Rate (%) 57 | 4 82 100 45 Regions Visited 3 Branch Regions 2 Pre-discovered Areas . | . . . . Known Exits Taken 3 | 1 1 1 . Unknown Exits Taken . | . . . . Scrap Searched 7 | . . 2 5 Spaces Dug . | . . . . Terrain Destroyed . | . . . . Melee . | . . . . Projectile . | . . . . AOE . | . . . . Terrain Rammed . | . . . . Walls Destroyed . | . . . . Machines Disabled . | . . . . Actions | -11 -10 -10 -10 --------- Run | Yrd Mat Min Sub Total 3127 | 85 578 682 1782 Wait 515 | . 8 52 455 Move 2435 | 63 502 619 1251 Hop . | . . . . Pick Up 26 | 7 9 5 5 Fast Attach 6 | 3 3 . . Attach 8 | 4 1 . 3 Detach 2 | . 1 . 1 Swap 5 | . 5 . . Drop 8 | . 8 . . Fire 122 | 8 41 6 67 Melee . | . . . . Ram . | . . . . Kick . | . . . . Crush . | . . . . Escape Stasis . | . . . . Rewire . | . . . . Trap . | . . . . Miscellaneous . | . . . . Route ------- -11/Scrapyard -10/Materials (discovered 3 exits: *Mat / *Min x2) -10/Mines (discovered 3 exits: *Mat x2 / *Sub) -10/Subcaves (discovered 2 exits: *Mat x2) History --------- Turn | Location | Event 6 | -11/Scrapyard | Identified exit to Materials 6 | -11/Scrapyard | Discovered exit to Materials (range 16) 105 | -11/Scrapyard | Entered Materials 105 | -10/Materials | Evolved 1 slot: Utility x1 314 | -10/Materials | Build established: Hacker-Mutant 354 | -10/Materials | Identified exit to Mines 354 | -10/Materials | Discovered exit to Mines (range 9) 913 | -10/Materials | Identified exit to Materials 913 | -10/Materials | Discovered exit to Materials (range 11) 1027 | -10/Materials | Discovered exit to Mines (range 14) 1051 | -10/Materials | Entered Mines 1056 | -10/Mines | Met a Derelict shopkeep closing up shop 1091 | -10/Mines | Met a Derelict bent on vengeance 1266 | -10/Mines | Identified exit to Subcaves 1266 | -10/Mines | Discovered exit to Subcaves (range 9) 1351 | -10/Mines | Discovered exit to Materials (range 12) 1366 | -10/Mines | Learned location of 1 exit from Materials 1388 | -10/Mines | Joined a pair of Derelicts in attacking an 0b10 outpost 1578 | -10/Mines | Discovered exit to Materials (range 6) 1931 | -10/Mines | Received a Rocket Launcher from a helpful Derelict 2117 | -10/Mines | Entered Subcaves 2118 | -10/Subcaves | Approached by a straggling Scientist 2124 | -10/Subcaves | Ambushed by Subdwellers from Twisted Machinery 2417 | -10/Subcaves | A swath of the cavern ceiling suddenly collapsed 2464 | -10/Subcaves | Core integrity fell below 50% 2523 | -10/Subcaves | Lost 3 parts (1n2w) 2782 | -10/Subcaves | Shifting Twisted Machinery released Flamer 2787 | -10/Subcaves | Shifting Twisted Machinery released Mak. Leg 3140 | -10/Subcaves | Identified exit to Materials 3140 | -10/Subcaves | Discovered exit to Materials (range 6) 3476 | -10/Subcaves | Discovered exit to Materials (range 10) 3566 | -10/Subcaves | Ambushed by angry Subdweller bent on revenge 3568 | -10/Subcaves | Core integrity fell below 20% 4342 | -10/Subcaves | A swath of the cavern ceiling suddenly collapsed 7720 | -10/Subcaves | Ambushed by angry Subdweller bent on revenge 7720 | -10/Subcaves | Destroyed by UM-G41(R) with Subdweller Laser Last Messages --------------- 06955_ System corrupted: Substantial component data lost. 06990_ System corrupted: Matter fused (-7). 07027_ LTB8H%&:SH3&KGIKWJJJBT9<%H| 07035_ Acquired 25 matter. 07079_ System corrupted: Substantial component data lost. 07345_ MA-3FC(u) tweaks Twisted Machinery. 07520_ System corrupted: Component data lost. 07540_ MA-3FC(u) tweaks Twisted Machinery. 07611_ P>W,LVU=B|CSJMQY2X%U#Z>LTP4R